bitfinex/quotes_ETHUSD_20250210
["timestamp","ask_amount","ask_price","bid_price","bid_amount"]
[1739227072377,0.07302478,2668.3,2668.1,3.74796]
[1739227072854,0.07302478,2668.3,2667.8,0.7531]
[1739227073183,0.07302478,2668.3,2668.2,3.74784]
[1739227073786,6.1379,2668.8,2668.1,0.7675]
[1739227073960,0.06795737,2668.3,2668.2,6.74784]
[1739227074290,5.35,2668.8,2668.4,3.74745]
[1739227074501,3.74695,2668.9,2668.3,0.7675]
[1739227074678,3.81520043,2668.7,2668.3,0.7675]
[1739227074856,3.74733,2668.6,2668.3,0.7675]
[1739227075184,3.81521819,2668.6,2668.3,0.7675]
[1739227075390,3.81524819,2668.6,2668.3,0.7675]
[1739227075586,3.74749,2668.5,2668.3,0.7675]
[1739227075789,3.74749,2668.5,2668.2,3.0]
[1739227075959,0.06770562,2668.4,2668.2,3.0]
[1739227076159,0.06770562,2668.4,2668.0,3.74801]
[1739227076365,3.74796,2668.2,2667.8,4.30448]
[1739227076557,3.74799,2668.1,2667.8,4.30448]
[1739227076754,0.06740187,2668.1,2667.8,4.30448]
[1739227076982,0.06740187,2668.1,2667.7,3.74852]
[1739227077202,3.748,2668.1,2667.6,4.51618]
[1739227077382,0.06732759,2668.0,2667.7,3.0]
[1739227077588,0.06732759,2668.0,2667.6,0.7675]
[1739227077797,3.81552759,2668.0,2667.6,3.0]
[1739227078189,0.06732759,2668.0,2667.6,6.74868]
[1739227078389,5.35,2668.2,2667.3,0.1462304]
[1739227078390,3.74861,2667.7,2667.3,0.1462304]
[1739227078682,0.06696784,2667.6,2667.3,0.1462304]
[1739227079133,3.74882,2667.5,2667.3,0.1462304]
[1739227079282,0.06685552,2667.5,2667.3,0.1462304]
[1739227079893,7.49752,2667.6,2667.3,0.1462304]
[1739227080101,0.06657426,2667.4,2667.3,0.1462304]
[1739227080287,3.74871,2667.6,2667.3,0.1462304]
[1739227080489,7.49753,2667.6,2667.3,0.1462304]
[1739227080853,0.06658537,2667.5,2667.3,0.1462304]
[1739227080986,3.81546537,2667.5,2667.3,0.1462304]
[1739227081521,3.74896,2667.4,2667.3,0.1462304]
[1739227081894,0.06643847,2667.4,2667.3,0.1462304]
[1739227082423,4.60329847,2667.4,2667.3,0.1462304]
[1739227083215,0.85433847,2667.4,2667.3,0.1462304]
[1739227083519,4.60329847,2667.4,2667.3,0.1462304]
[1739227083906,0.85433847,2667.4,2667.3,0.1462304]
[1739227087028,4.60329847,2667.4,2667.3,0.1462304]
[1739227089046,9.95329847,2667.4,2667.3,0.1462304]
[1739227089247,12.95329847,2667.4,2667.3,0.1462304]
[1739227089407,12.95329847,2667.4,2667.3,4e-07]
[1739227091335,13.55329847,2667.4,2667.3,4e-07]
[1739227094189,9.95329847,2667.4,2667.3,4e-07]
[1739227094900,5.41643847,2667.4,2667.3,4e-07]
[1739227095795,9.16539847,2667.4,2667.3,4e-07]
[1739227096427,5.41643847,2667.4,2667.3,4e-07]
[1739227096995,5.41643847,2667.4,2667.3,0.8077004]
[1739227096996,0.06643847,2667.4,2667.3,0.8077004]
[1739227097326,9.88791,2667.9,2667.3,4.5568004]
[1739227097489,0.06280091,2667.4,2667.3,4.5567904]
[1739227097695,6.1396,2667.9,2667.4,3.7489]
[1739227098228,13.63628,2667.9,2667.4,3.7489]
[1739227098400,5.35,2667.9,2667.3,0.8077004]
[1739227098599,5.35,2667.9,2667.7,3.74854]
[1739227098800,5.35,2667.9,2667.7,4.55624]
[1739227099017,5.35,2667.9,2667.7,4.55616]
[1739227099596,5.35,2667.9,2667.5,3.74874]
[1739227099794,5.35,2667.9,2667.5,7.49748]
[1739227100015,5.35,2667.9,2667.4,0.8077]
[1739227100315,0.06302472,2667.8,2667.4,0.8077]
[1739227100627,0.06302472,2667.8,2667.4,4.55663]
[1739227101402,0.87092472,2667.8,2667.3,3.7489704]
[1739227101726,3.8115839,2667.7,2667.3,4e-07]
[1739227101925,0.0630339,2667.7,2667.3,4e-07]
[1739227102135,0.8079,2667.8,2667.3,4e-07]
[1739227102348,0.06292157,2667.6,2667.3,4e-07]
[1739227102546,3.74857,2667.7,2667.3,4e-07]
[1739227102746,0.06280924,2667.5,2667.3,4e-07]
[1739227103246,3.74893,2667.5,2667.3,4e-07]
[1739227103470,3.8116569,2667.4,2667.3,4e-07]
[1739227104344,4.6195569,2667.4,2667.3,4e-07]
[1739227105468,0.8705969,2667.4,2667.3,4e-07]
[1739227105755,4.6195569,2667.4,2667.3,4e-07]
[1739227105954,0.8705969,2667.4,2667.3,4e-07]
[1739227106325,0.0626969,2667.4,2667.3,4e-07]
[1739227106526,3.7488,2667.6,2667.3,4e-07]
[1739227106744,0.06262749,2667.4,2667.3,4e-07]
[1739227106952,3.7488,2667.6,2667.3,4e-07]
[1739227107135,0.06262749,2667.4,2667.3,4e-07]
[1739227107336,3.7488,2667.6,2667.3,4e-07]
[1739227107550,0.06262749,2667.4,2667.3,4e-07]
[1739227107855,4.55624,2667.9,2667.3,3.7489904]
[1739227108065,0.06264484,2667.4,2667.3,3.7489904]
[1739227108231,5.35,2668.0,2667.7,3.74852]
[1739227108438,5.35,2668.0,2667.6,3.74868]
[1739227109032,5.35,2668.0,2667.6,3.7486]
[1739227110973,0.06236427,2667.9,2667.6,3.7486]
[1739227111659,0.06236427,2667.9,2667.8,3.7484]
[1739227111854,3.74722,2668.7,2667.7,4.56424]
[1739227112054,0.06103237,2668.6,2668.2,3.74771]
[1739227112256,0.06103237,2668.6,2668.3,3.74769]
[1739227112774,2.56224926,2668.8,2668.3,3.7476]
[1739227113070,1.76184926,2668.8,2668.4,3.74752]
[1739227113234,1.76184926,2668.8,2668.6,3.74726]
[1739227113575,1.76184926,2668.8,2668.4,3.74744]
[1739227113976,1.76184926,2668.8,2668.7,4.56284]
[1739227114136,0.07925134,2669.5,2668.7,0.8157]
[1739227114473,3.80638716,2669.4,2668.8,3.74688]
[1739227114773,3.80639716,2669.4,2668.8,3.74688]
[1739227114972,3.74633,2669.3,2668.8,3.74688]
[1739227115140,3.74648,2669.2,2668.7,3.8157]
[1739227115340,0.06025286,2669.2,2668.9,3.74682]
[1739227115563,3.82533134,2669.5,2669.0,3.7467]
[1739227115945,3.74622,2669.4,2668.8,3.74691]
[1739227116158,3.82533134,2669.5,2668.8,3.74691]
[1739227116368,7.57148134,2669.5,2668.8,3.74691]
[1739227116539,3.74619,2669.4,2668.8,3.74691]
[1739227117439,3.82533134,2669.5,2668.8,3.74691]
[1739227117641,3.74617,2669.4,2668.8,3.74691]
[1739227118269,0.06042449,2669.3,2668.8,3.74691]
[1739227118438,0.06042449,2669.3,2668.8,7.49382]
[1739227118642,3.80673449,2669.3,2668.8,3.74691]
[1739227119071,3.74658,2669.1,2668.3,4.56329]
[1739227119278,0.8004,2669.2,2667.8,3.74836]
[1739227119279,3.7469,2668.9,2668.2,3.74771]
[1739227119456,3.74719,2668.7,2668.2,3.74771]
[1739227119649,3.74732,2668.6,2668.0,4.56379]
[1739227119841,0.05967365,2668.6,2668.1,3.74796]
[1739227120546,3.80696365,2668.6,2668.0,4.56379]
[1739227120757,3.80696365,2668.6,2668.0,8.31181]
[1739227121279,3.80696365,2668.6,2668.0,4.56372]
[1739227121680,3.74745,2668.5,2668.0,4.56372]
[1739227122051,0.05931543,2668.4,2668.0,4.56372]
[1739227122375,0.05931543,2668.4,2668.0,8.31176]
[1739227122576,0.05931543,2668.4,2668.1,3.74796]
[1739227122777,7.49445,2668.7,2668.1,3.74796]
[1739227122974,0.05920317,2668.3,2668.1,3.74796]
[1739227123273,3.74748,2668.5,2668.0,4.56381]
[1739227123477,0.0590909,2668.2,2668.0,4.56381]
[1739227123858,7.49469,2668.6,2668.0,4.56381]
[1739227124055,0.05897862,2668.1,2668.0,4.31421]
[1739227124359,0.05885479,2668.1,2668.0,4.31421]
[1739227124561,3.74733,2668.6,2668.0,4.31421]
[1739227124763,0.05888554,2668.1,2668.0,4.31421]
[1739227124977,3.74742,2668.5,2667.9,3.74826]
[1739227125183,0.05888554,2668.1,2667.7,4.49656705]
[1739227125383,3.74814,2668.0,2667.5,3.74872]
[1739227125557,3.80691573,2668.0,2667.4,3.0]
[1739227125762,3.80691573,2668.0,2667.4,6.74888]
[1739227125960,3.74828,2667.9,2667.4,6.74888]
[1739227126161,3.80694343,2667.9,2667.4,6.74888]
[1739227126361,3.80694343,2667.9,2667.4,3.74888]
[1739227127192,0.05866343,2667.9,2667.3,4.5647904]
[1739227127373,3.74842,2667.8,2667.3,4.5647904]
[1739227127560,3.8068398,2667.8,2667.3,4.5647904]
[1739227127961,3.8068398,2667.8,2667.3,4.5647204]
[1739227131587,3.8068398,2667.8,2667.3,3.7490204]
[1739227137596,3.8068398,2667.8,2667.3,4e-07]
[1739227137800,3.74864,2667.7,2667.3,4e-07]
[1739227137967,3.80683498,2667.7,2667.3,4e-07]
[1739227138996,0.05819498,2667.7,2667.3,4e-07]
[1739227139294,4.53259,2667.6,2667.3,4e-07]
[1739227139598,4.5906231,2667.6,2667.3,4e-07]
[1739227140269,0.8419331,2667.6,2667.3,4e-07]
[1739227141368,4.5906231,2667.6,2667.3,4e-07]
[1739227141568,3.7489,2667.5,2667.3,4e-07]
[1739227141768,3.80679103,2667.5,2667.3,4e-07]
[1739227143584,0.05789103,2667.5,2667.3,4e-07]
[1739227143795,3.74896,2667.4,2667.3,4e-07]
[1739227144007,3.80673869,2667.4,2667.3,4e-07]
[1739227145997,4.59063869,2667.4,2667.3,4e-07]
[1739227146511,4.64063869,2667.4,2667.3,4e-07]
[1739227147596,5.19063869,2667.4,2667.3,4e-07]
[1739227147800,10.54813869,2667.4,2667.3,4e-07]
[1739227148312,13.54813869,2667.4,2667.3,4e-07]
[1739227155789,10.54063869,2667.4,2667.3,4e-07]
[1739227163731,3.75073,2666.2,2665.7,4.49958369]
[1739227163912,0.05551825,2666.1,2665.7,4.51249]
[1739227164085,0.05551825,2666.1,2665.7,0.7612]
[1739227164286,0.05551825,2666.1,2665.8,3.75117]
[1739227164486,3.75053,2666.3,2665.8,3.75117]
[1739227164697,0.05598598,2666.2,2665.8,3.75117]
[1739227164911,3.75039,2666.4,2666.0,3.75092]
[1739227165120,0.05600166,2666.3,2666.1,0.7612]
[1739227165303,3.75024,2666.5,2666.1,0.7612]
[1739227165502,0.05598985,2666.4,2666.1,0.7612]
[1739227165829,0.05598985,2666.4,2666.1,4.51187]
[1739227165996,3.7501,2666.6,2666.1,4.51187]
[1739227166198,0.05587743,2666.3,2666.1,4.51187]
[1739227166505,3.74999,2666.7,2666.2,3.75065]
[1739227167115,3.75011,2666.6,2666.1,4.51193]
[1739227167500,0.05599811,2666.5,2666.2,3.75064]
[1739227173134,0.05599811,2666.5,2666.1,0.7612]
[1739227173329,0.05599811,2666.5,2666.1,4.51196]
[1739227173530,0.05599811,2666.5,2666.1,0.7612]
[1739227173738,3.75059,2666.3,2666.1,0.7612]
[1739227173922,0.05367324,2666.2,2666.1,0.7612]
[1739227174119,3.75059,2666.3,2666.1,0.7612]
[1739227174431,0.05367324,2666.2,2666.1,0.7612]
[1739227174611,3.75037,2666.4,2666.1,0.7612]
[1739227174801,0.05370321,2666.2,2666.1,0.7612]
[1739227175000,3.75037,2666.4,2666.1,0.7612]
[1739227175241,0.05367324,2666.2,2666.1,0.7612]
[1739227175402,3.75037,2666.4,2666.1,0.7612]
[1739227175602,3.75148,2665.7,2665.5,0.7612]
[1739227175830,3.75051,2666.3,2665.5,0.7612]
[1739227176039,0.05279358,2665.6,2665.5,0.7612]
[1739227176211,3.75138,2665.7,2665.5,0.7612]
[1739227176212,3.75144,2665.7,2665.5,0.7612]
[1739227176528,0.05267697,2665.6,2665.5,0.7612]
[1739227176729,3.75127,2665.8,2665.5,0.7612]
[1739227176930,0.05278091,2665.7,2665.5,0.7612]
[1739227177103,3.75127,2665.8,2665.5,0.7612]
[1739227177302,0.05278091,2665.7,2665.5,0.7612]
[1739227177503,3.75136,2665.7,2665.5,0.7612]
[1739227178035,0.05266843,2665.6,2665.4,3.0]
[1739227178239,0.05266843,2665.6,2665.3,0.7612]
[1739227178547,3.75171,2665.5,2665.0,0.7612]
[1739227178757,0.05225485,2665.4,2665.0,0.7612]
[1739227178921,3.75194,2665.3,2665.0,0.7612]
[1739227179117,0.05199946,2665.2,2665.0,0.7612]
[1739227179322,3.75194,2665.3,2665.0,0.7612]
[1739227179522,0.05200668,2665.2,2665.0,0.7612]
[1739227179734,3.75194,2665.3,2665.0,0.7612]
[1739227179928,0.05200668,2665.2,2665.0,0.7612]
[1739227180226,7.50349,2665.5,2665.0,0.7612]
[1739227180431,0.05180974,2665.1,2665.0,0.7612]
[1739227180633,3.75178,2665.4,2665.0,0.7612]
[1739227180832,0.05180726,2665.1,2665.0,0.7612]
[1739227181027,3.75178,2665.4,2665.0,0.7612]
[1739227181543,0.05144658,2665.3,2665.0,0.7612]
[1739227182753,3.7521,2665.2,2664.6,0.1462304]
[1739227182963,3.75235,2665.0,2664.6,0.1462304]
[1739227183138,3.75255,2664.9,2664.6,0.1462304]
[1739227183330,0.05053329,2664.8,2664.6,0.1462304]
[1739227183636,3.80318329,2664.8,2664.6,0.1462304]
[1739227184056,3.80318329,2664.8,2663.6,0.5575]
[1739227184057,0.7722,2664.7,2662.7,0.1]
[1739227184261,3.0,2664.4,2663.8,0.74120276]
[1739227184432,3.0,2664.4,2663.2,3.75479]
[1739227184433,3.75389,2663.9,2663.2,3.75479]
[1739227184767,0.0482914,2663.8,2663.2,3.75479]
[1739227185146,3.8023214,2663.8,2663.2,3.75479]
[1739227185351,3.8023214,2663.8,2663.1,0.7988]
[1739227185523,3.8023214,2663.8,2663.1,3.7988]
[1739227185726,3.8023214,2663.8,2663.2,3.75485]
[1739227185954,0.0482914,2663.8,2663.2,3.75485]
[1739227186166,3.8023214,2663.8,2663.2,3.75485]
[1739227186371,3.8023214,2663.8,2663.1,0.7988]
[1739227195453,3.8023214,2663.8,2663.1,4.55381]
[1739227195779,3.8023214,2663.8,2663.1,0.7988]
[1739227196350,3.8023214,2663.8,2663.1,4.55381]
[1739227198872,1.54446447,2665.0,2664.4,3.75306]
[1739227199052,1.54446447,2665.0,2664.4,7.50616]
[1739227199053,5.29688447,2665.0,2664.4,7.50616]
[1739227199259,3.75262,2664.9,2664.3,4.57998]
[1739227200278,1.54446447,2665.0,2664.9,3.75248]
[1739227200481,0.7655,2665.7,2665.4,3.75172]
[1739227200656,4.51694,2665.7,2665.1,3.75218]
[1739227200857,0.7655,2665.7,2665.1,3.75218]
[1739227201064,3.75152,2665.6,2665.1,3.75218]
[1739227201381,3.75129,2665.8,2665.1,3.75213]
[1739227201590,3.7518,2665.4,2664.9,4.57908]
[1739227201790,3.7516,2665.6,2664.9,4.57908]
[1739227201991,3.75175,2665.5,2664.9,4.57908]
[1739227202491,3.7516,2665.6,2664.9,8.33146]
[1739227202699,3.7516,2665.6,2664.9,4.57908]
[1739227203389,3.75172,2665.5,2664.9,4.57908]
[1739227203596,3.75172,2665.5,2664.9,8.33145]
[1739227203892,3.75172,2665.5,2664.9,4.57907]
[1739227204194,7.50349,2665.5,2664.9,4.57907]
[1739227204491,4.51722,2665.5,2664.9,4.57907]
[1739227204817,4.51722,2665.5,2665.0,3.7523]
[1739227204997,4.51722,2665.5,2664.9,4.57907]
[1739227205798,4.51722,2665.5,2664.9,8.33146]
[1739227205963,4.51722,2665.5,2665.0,3.75233]
[1739227206771,3.75108,2665.9,2665.3,3.75183]
[1739227207093,3.75058,2666.3,2665.7,3.75127]
[1739227207300,3.75058,2666.3,2665.8,0.7787]
[1739227207495,0.8194,2666.6,2665.9,3.75107]
[1739227207681,4.56949,2666.6,2666.1,3.75078]
[1739227207883,4.56949,2666.6,2665.8,0.7787]
[1739227207884,0.8194,2666.6,2666.2,3.75055]
[1739227208087,5.628,2667.1,2666.4,3.75024]
[1739227208088,0.278,2667.1,2666.4,3.75024]
[1739227208290,3.74968,2666.9,2666.4,3.75024]
[1739227209289,7.49929,2667.0,2666.4,3.75024]
[1739227209490,3.74963,2667.0,2666.4,3.75024]
[1739227209996,7.49929,2667.0,2666.4,3.75024]
[1739227210170,3.74983,2666.8,2666.2,3.75059]
[1739227210583,7.49977,2666.8,2666.2,3.75059]
[1739227210790,3.74983,2666.8,2666.2,3.75059]
[1739227210990,7.49974,2666.8,2666.2,3.75059]
[1739227211204,3.74983,2666.8,2666.2,3.75056]
[1739227211401,3.74983,2666.8,2666.2,7.50113]
[1739227211769,7.49974,2666.8,2666.2,3.75056]
[1739227212069,3.74983,2666.8,2666.2,3.75056]
[1739227212268,7.49974,2666.8,2666.2,3.75056]
[1739227212577,3.75005,2666.7,2666.1,4.53899]
[1739227213207,3.75005,2666.7,2666.2,3.75064]
[1739227213502,3.74982,2666.8,2666.2,7.50121]
[1739227213801,3.74968,2666.9,2666.4,3.75037]
[1739227214185,3.74961,2667.0,2666.4,3.75037]
[1739227214386,7.49922,2667.0,2666.4,3.75037]
[1739227214589,3.74961,2667.0,2666.2,3.7506]
[1739227214786,3.74961,2667.0,2666.3,3.7505]
[1739227215094,3.74961,2667.0,2666.4,3.75027]
[1739227215273,3.74961,2667.0,2666.4,7.50053]
[1739227215469,3.74961,2667.0,2666.4,3.75026]
[1739227215711,3.74961,2667.0,2666.4,7.50051]
[1739227216321,7.49927,2667.0,2666.4,3.75025]
[1739227216519,3.74961,2667.0,2666.4,3.75025]
[1739227216819,3.74961,2667.0,2666.4,7.50055]
[1739227217289,3.74961,2667.0,2666.5,3.7502]
[1739227217709,3.7497,2666.9,2666.4,3.75025]
[1739227218729,3.7497,2666.9,2666.4,7.50054]
[1739227218883,3.7497,2666.9,2666.4,3.75025]
[1739227219089,3.7497,2666.9,2666.4,7.50054]
[1739227219391,3.74955,2667.0,2666.5,3.7502]
[1739227220189,3.74918,2667.3,2666.8,0.7882]
[1739227220518,3.74918,2667.3,2666.8,4.53798]
[1739227221197,3.74897,2667.4,2666.9,3.74966]
[1739227221403,5.30029485,2667.5,2667.0,3.74951]
[1739227222485,9.04921485,2667.5,2667.0,3.74951]
[1739227224634,5.30029485,2667.5,2667.0,3.74951]
[1739227225491,9.04924485,2667.5,2667.0,3.74951]
[1739227225716,5.30029485,2667.5,2667.0,3.74951]
[1739227226492,9.04920485,2667.5,2667.0,3.74951]
[1739227227740,5.30029485,2667.5,2667.0,3.74951]
[1739227227923,9.04921485,2667.5,2667.0,3.74951]
[1739227228306,1.55141485,2667.5,2667.1,3.74925]
[1739227232245,0.07332497,2667.4,2667.1,3.74925]
[1739227241557,0.07332497,2667.4,2667.1,3.74932]
[1739227244539,0.07332497,2667.4,2667.2,3.7492]
[1739227244759,0.07332497,2667.4,2667.1,4.52298]
[1739227244953,0.07332497,2667.4,2667.1,3.74938]
[1739227245966,0.07332497,2667.4,2667.1,7.49868]
[1739227246374,0.07332497,2667.4,2667.1,3.7493]
[1739227246548,0.07332497,2667.4,2667.2,3.74922]
[1739227248287,0.07332497,2667.4,2667.3,3.7491]
[1739227251148,0.07332497,2667.4,2667.2,7.4984]
[1739227251690,0.07332497,2667.4,2667.2,3.74915]
[1739227252254,0.07332497,2667.4,2667.2,7.49831]
[1739227252882,0.07332497,2667.4,2667.3,3.7491]
[1739227253858,0.07332497,2667.4,2667.3,4.10069091]
[1739227254058,0.07332497,2667.4,2667.3,4.90619091]
[1739227254262,4.57529,2668.2,2667.6,3.74865]
[1739227254467,3.748,2668.1,2667.6,3.74865]
[1739227255558,0.8274,2668.2,2667.3,3.8055]
[1739227255755,0.8274,2668.2,2667.8,3.7483]
[1739227256157,4.57524,2668.2,2667.7,3.74854]
[1739227256657,8.32318,2668.2,2667.7,3.74854]
[1739227257158,3.81759011,2668.1,2667.4,3.74886]
[1739227257358,3.74821,2668.0,2667.5,3.74876]
[1739227257582,3.74821,2668.0,2667.4,3.74886]
[1739227257583,0.06936861,2667.9,2667.4,3.74886]
[1739227257812,3.74799,2668.1,2667.3,0.8055]
[1739227257978,0.06937827,2668.0,2667.6,3.74865]
[1739227259794,0.06937827,2668.0,2667.7,0.8055]
[1739227259990,0.06937827,2668.0,2667.7,4.554]
[1739227261186,4.57528,2668.2,2667.7,4.554]
[1739227261378,0.06915595,2668.1,2667.8,3.74838]
[1739227261583,7.49555,2668.3,2667.8,3.74838]
[1739227261783,3.74777,2668.3,2667.8,3.74838]
[1739227262579,0.8274,2668.4,2668.0,3.74802]
[1739227262784,4.57497,2668.4,2668.0,3.74802]
[1739227263186,3.74757,2668.4,2667.9,3.74825]
[1739227263816,3.74757,2668.4,2668.0,3.74811]
[1739227264297,0.0693189,2668.3,2668.0,3.74811]
[1739227264908,3.7475,2668.5,2668.0,3.74811]
[1739227265117,0.06651923,2668.2,2668.0,3.74811]
[1739227265314,0.06651923,2668.2,2667.8,3.74832]
[1739227265315,3.74733,2668.6,2668.1,3.74793]
[1739227265630,6.1774,2668.7,2667.8,3.74834]
[1739227265797,0.06685141,2668.5,2667.9,0.8055]
[1739227266000,3.74731,2668.6,2668.0,3.74802]
[1739227266213,0.06601045,2668.5,2668.1,3.74786]
[1739227266406,3.81354045,2668.5,2667.9,0.8055]
[1739227266611,3.74766,2668.4,2667.9,4.55375]
[1739227266805,0.06565061,2668.3,2667.9,4.55375]
[1739227268416,3.81337061,2668.3,2667.9,4.55375]
[1739227269021,0.06565061,2668.3,2667.9,4.55375]
[1739227269225,7.49508,2668.5,2667.9,8.302]
[1739227269413,0.06545842,2668.4,2667.9,8.302]
[1739227270535,0.06545842,2668.4,2667.9,4.55375]
[1739227270702,0.06545842,2668.4,2668.0,3.74811]
[1739227270903,3.81307842,2668.4,2667.9,8.30193]
[1739227271407,0.06545842,2668.4,2668.0,3.74811]
[1739227272326,0.06545842,2668.4,2668.0,3.74812]
[1739227279743,3.81302842,2668.4,2668.0,3.74812]
[1739227281538,3.81302842,2668.4,2667.9,3.74825]
[1739227281539,0.7749,2668.3,2667.9,3.74825]
[1739227281847,0.06221892,2668.2,2667.7,0.79]
[1739227282168,4.52251,2668.4,2668.0,3.74803]
[1739227282368,0.06210817,2668.1,2667.8,3.74838]
[1739227282572,3.74771,2668.3,2667.8,3.74838]
[1739227282746,0.06199742,2668.0,2667.8,7.49668]
[1739227282948,3.74771,2668.3,2667.8,7.49668]
[1739227283163,0.06188666,2667.9,2667.8,3.7483]
[1739227283363,3.74771,2668.3,2667.8,3.7483]
[1739227283590,0.06188666,2667.9,2667.8,3.7483]
[1739227283740,3.74771,2668.3,2667.8,3.7483]
[1739227283940,0.06210876,2667.9,2667.8,3.7483]
[1739227284185,0.7749,2668.1,2667.7,3.74847]
[1739227284346,0.06210876,2667.9,2667.7,7.49693]
[1739227284545,0.7749,2668.1,2667.7,7.49693]
[1739227284761,0.061998,2667.8,2667.7,3.74846]
[1739227285394,0.7749,2668.1,2667.7,3.74846]
[1739227285589,0.061998,2667.8,2667.7,3.74846]
[1739227286103,0.7749,2668.1,2667.7,3.74846]
[1739227286395,0.06198053,2667.8,2667.7,3.74846]
[1739227286591,0.7749,2668.1,2667.7,3.74846]
[1739227286746,0.06198053,2667.8,2667.7,3.74846]
[1739227286950,0.7749,2668.1,2667.7,3.74846]
[1739227287147,0.06198053,2667.8,2667.7,3.74846]
[1739227287397,0.7749,2668.1,2667.7,3.74846]
[1739227287543,0.06198053,2667.8,2667.7,3.74846]
[1739227287748,0.7749,2668.1,2667.7,3.74846]
[1739227287948,0.06198053,2667.8,2667.7,3.74846]
[1739227288144,0.7749,2668.1,2667.6,3.74866]
[1739227288381,0.7749,2668.1,2667.8,3.74839]
[1739227289084,0.06224756,2668.0,2667.8,3.74839]
[1739227289287,0.06224756,2668.0,2667.8,3.74831]
[1739227289595,0.06224756,2668.0,2667.8,7.49663]
[1739227289797,0.06224756,2668.0,2667.8,3.74831]
[1739227290368,0.06224756,2668.0,2667.9,3.74826]
[1739227292855,0.7749,2668.3,2668.0,3.74805]
[1739227293858,0.7749,2668.3,2667.9,3.74825]
[1739227295480,3.7749,2668.6,2668.2,3.74784]
[1739227295988,0.7749,2668.6,2668.3,3.74769]
[1739227296896,0.06167087,2668.5,2668.2,3.74775]
[1739227297480,0.06167087,2668.5,2668.3,3.7477]
[1739227303006,0.06167087,2668.5,2668.2,4.54254]
[1739227303600,0.06167087,2668.5,2668.2,0.7947]
[1739227303903,0.06167087,2668.5,2668.3,3.74767]
[1739227304303,3.74715,2668.7,2668.3,3.74767]
[1739227304476,0.06148878,2668.4,2668.3,3.74767]
[1739227304676,3.74715,2668.7,2668.3,3.74767]
[1739227304876,0.06148878,2668.4,2668.3,3.74767]
[1739227305098,3.74715,2668.7,2668.3,3.74767]
[1739227305299,0.06148878,2668.4,2668.3,3.74767]
[1739227305496,3.74715,2668.7,2668.2,0.7947]
[1739227305669,0.06148878,2668.4,2668.2,4.54254]
[1739227305870,3.74715,2668.7,2668.2,0.7947]
[1739227306193,0.06171021,2668.6,2668.2,4.5425]
[1739227307483,0.06171021,2668.6,2668.5,3.74742]
[1739227307688,0.7892,2668.8,2668.5,3.74742]
[1739227307885,0.05732367,2668.6,2668.5,3.7474]
[1739227308098,4.53592,2669.0,2668.5,3.7474]
[1739227308284,0.05732367,2668.6,2668.5,3.7474]
[1739227308500,8.28276,2669.0,2668.5,3.7474]
[1739227308695,0.05732367,2668.6,2668.4,3.74754]
[1739227309008,3.74686,2668.9,2668.4,3.74754]
[1739227309214,0.05675291,2668.5,2668.4,3.74754]
[1739227309412,3.74686,2668.9,2668.4,3.74754]
[1739227309614,0.05676288,2668.5,2668.4,3.74754]
[1739227309778,3.74686,2668.9,2668.4,3.74754]
[1739227310107,7.4938,2668.9,2668.4,3.74754]
[1739227310311,0.05709503,2668.8,2668.4,3.74754]
[1739227310914,0.05709503,2668.8,2668.3,3.74768]
[1739227311214,3.80409503,2668.8,2668.4,3.74749]
[1739227313113,0.05709503,2668.8,2668.4,3.74749]
[1739227313781,0.05709503,2668.8,2668.6,3.74728]
[1739227313977,3.74666,2669.1,2668.6,3.74728]
[1739227314214,0.05736321,2668.7,2668.6,3.74728]
[1739227314403,3.7468,2669.0,2668.5,0.8048]
[1739227315318,0.05769184,2668.9,2668.5,4.55217]
[1739227315482,0.05769184,2668.9,2668.6,3.74725]
[1739227315681,3.74674,2669.0,2668.6,3.74725]
[1739227315907,0.05769184,2668.9,2668.6,3.74725]
[1739227316313,0.05769184,2668.9,2668.7,0.03746662]
[1739227317182,0.05769184,2668.9,2668.6,3.74725]
[1739227317382,0.05769184,2668.9,2668.5,4.55218]
[1739227317686,0.05769184,2668.9,2668.5,4.58964661]
[1739227318393,0.05769184,2668.9,2668.5,4.55218]
[1739227318880,0.05769184,2668.9,2668.6,3.74725]
[1739227319084,0.05769184,2668.9,2668.5,4.55218]
[1739227319310,0.05769184,2668.9,2668.5,4.58962664]
[1739227319684,0.05769184,2668.9,2668.6,3.74726]
[1739227319913,0.05769184,2668.9,2668.5,4.55214]
[1739227321239,3.80455184,2668.9,2668.5,4.55214]
[1739227321389,3.74686,2668.9,2668.5,4.55214]
[1739227321693,0.05690133,2668.8,2668.5,4.55214]
[1739227321903,0.05690133,2668.8,2668.3,4.55239]
[1739227321904,0.83730133,2668.8,2668.3,4.55239]
[1739227322203,3.7472,2668.7,2668.2,3.74783]
[1739227322403,0.83730133,2668.8,2668.1,0.8048]
[1739227322603,0.05676468,2668.6,2668.2,3.74784]
[1739227322782,4.52784,2668.5,2668.0,3.74799]
[1739227323087,3.74767,2668.4,2667.9,0.8048]
[1739227323281,0.05624896,2668.3,2667.9,4.55306]
[1739227324116,0.05624896,2668.3,2668.0,3.74811]
[1739227324919,0.7804,2668.2,2667.9,3.74823]
[1739227325224,0.83648086,2668.2,2667.8,3.74831]
[1739227325601,0.83648086,2668.2,2667.8,7.49663]
[1739227325802,0.83648086,2668.2,2667.9,3.74825]
[1739227326001,0.83648086,2668.2,2667.8,3.74831]
[1739227326206,0.83648086,2668.2,2667.8,7.49663]
[1739227326522,0.83648086,2668.2,2667.9,3.74823]
[1739227327422,0.05608086,2668.2,2667.9,4.57413]
[1739227327622,0.05608086,2668.2,2667.5,4.48532476]
[1739227327623,0.05608086,2668.2,2668.1,7.58138]
[1739227327799,0.7693,2669.0,2668.3,0.8259]
[1739227328000,0.7693,2669.4,2668.9,3.74673]
[1739227328195,4.51548,2669.4,2668.9,3.74673]
[1739227328906,4.51548,2669.4,2668.5,4.57326]